fUST/lending_fUST_20260129
["ID","MTS","AMOUNT","RATE_DAILY","PERIOD"]
[403970795,1769700639185,-500.0,0.00013698,2]
[403970796,1769700639197,-586.53134031,0.00013698,2]
[403970797,1769700639206,-500.0,0.00013699,2]
[403970798,1769700639216,-500.0,0.00013699,2]
[403970799,1769700639225,-500.0,0.00013699,2]
[403970800,1769700639234,-500.0,0.00013699,2]
[403970801,1769700639243,-500.0,0.00013699,2]
[403970802,1769700639253,-500.0,0.00013699,2]
[403970803,1769700639262,-500.0,0.00013699,2]
[403970804,1769700639272,-500.0,0.00013699,2]
[403970805,1769700639281,-500.0,0.00013699,2]
[403970806,1769700639290,-500.0,0.00013699,2]
[403970807,1769700639300,-500.0,0.00013699,2]
[403970808,1769700639309,-500.0,0.00013699,2]
[403970809,1769700639319,-500.0,0.00013699,2]
[403970810,1769700639328,-502.31560209,0.00013699,2]
[403970811,1769700639338,-500.0,0.00013699,2]
[403970812,1769700639347,-253.52421754,0.00013699,2]
[403970813,1769700639356,-500.0,0.00013699,2]
[403970814,1769700639366,-500.0,0.00013699,2]
[403970815,1769700639375,-160.17255989,0.00013699,2]
[403970816,1769700639384,-500.0,0.00013699,2]
[403970817,1769700639394,-158.14095068,0.00013699,2]
[403970818,1769700639404,-158.21379985,0.00013699,2]
[403970819,1769700639413,-500.0,0.00013699,2]
[403970820,1769700639422,-500.0,0.00013699,2]
[403970821,1769700639431,-500.0,0.00013699,2]
[403970822,1769700639440,-156.21109496,0.00013699,2]
[403970823,1769700639451,-270.34219959,0.00013699,2]
[403970825,1769700639461,-500.0,0.00013699,2]
[403970827,1769700639471,-500.0,0.00013699,2]
[403970829,1769700639480,-500.0,0.00013699,2]
[403970831,1769700639489,-192.4719613,0.00013699,2]
[403970833,1769700639498,-500.0,0.00013699,2]
[403970834,1769700639507,-500.0,0.00013699,2]
[403970836,1769700639516,-500.0,0.00013699,2]
[403970837,1769700639526,-500.0,0.00013699,2]
[403970838,1769700639535,-520.54598086,0.00013699,2]
[403970839,1769700639545,-500.0,0.00013699,2]
[403970840,1769700639554,-500.32013832,0.00013699,2]
[403970841,1769700639563,-500.33546099,0.00013699,2]
[403970842,1769700639573,-500.0,0.00013699,2]
[403970843,1769700639582,-500.47417755,0.00013699,2]
[403970844,1769700639592,-166.73077085,0.00013699,2]
[403970845,1769700639601,-500.35547164,0.00013699,2]
[403970846,1769700639610,-500.0,0.00013699,2]
[403970847,1769700639619,-500.3225386,0.00013699,2]
[403970848,1769700639628,-502.84366038,0.00013699,2]
[403970849,1769700639637,-500.0,0.00013699,2]
[403970850,1769700639647,-500.0,0.00013699,2]
[403970851,1769700639657,-500.0,0.00013699,2]
[403970852,1769700639666,-500.0,0.00013699,2]
[403970854,1769700639675,-525.44624221,0.00013699,2]
[403970855,1769700639686,-256.7094778,0.00013699,2]
[403970856,1769700639698,-500.0,0.00013699,2]
[403970857,1769700639709,-500.0,0.00013699,2]
[403970858,1769700639719,-500.0,0.00013699,2]
[403970859,1769700639729,-500.0,0.00013699,2]
[403970860,1769700639738,-526.57250641,0.00013699,2]
[403970861,1769700639748,-500.0,0.00013699,2]
[403970863,1769700639757,-159.97256479,0.00013699,2]
[403970865,1769700639768,-500.0,0.00013699,2]
[403970867,1769700639777,-258.54813369,0.00013699,2]
[403970868,1769700639786,-500.0,0.00013699,2]
[403970869,1769700639796,-500.0,0.00013699,2]
[403970870,1769700639805,-500.0,0.00013699,2]
[403970872,1769700639815,-500.0,0.00013699,2]
[403970874,1769700639824,-500.0,0.00013699,2]
[403970876,1769700639834,-500.0,0.00013699,2]
[403970878,1769700639843,-500.0,0.00013699,2]
[403970880,1769700639852,-500.0,0.00013699,2]
[403970882,1769700639862,-2162.4488371,0.00013761,2]
[403970884,1769700639872,-1578.73,0.00013762,2]
[403970886,1769700639881,-1000.0,0.00013821,2]
[403970888,1769700639890,-500.0,0.00013821,2]
[403970890,1769700639900,-1000.0,0.00013821,2]
[403970892,1769700639909,-903.59077284,0.00013821,2]
[403970894,1769700639918,-477.3513425,0.00013821,2]
[403970896,1769700639928,-500.0,0.00013821,2]
[403970898,1769700639937,-500.0,0.00013821,2]
[403970900,1769700639947,-1000.0,0.00013821,2]
[403970902,1769700639957,-457.66697968,0.00013821,2]
[403970904,1769700639967,-1000.0,0.00013821,2]
[403970906,1769700639976,-1000.0,0.00013821,2]
[403970908,1769700639986,-1000.0,0.00013821,2]
[403970910,1769700639995,-1000.0,0.00013821,2]
[403970912,1769700640005,-824.94585229,0.00013821,2]
[403970914,1769700640015,-1000.0,0.00013821,2]
[403970916,1769700640025,-1000.0,0.00013821,2]
[403970918,1769700640035,-1000.0,0.00013821,2]
[403970920,1769700640044,-1000.0,0.00013821,2]
[403970922,1769700640053,-1000.0,0.00013821,2]
[403970924,1769700640063,-1000.0,0.00013821,2]
[403970926,1769700640073,-1000.0,0.00013821,2]
[403970928,1769700640082,-1000.0,0.00013821,2]
[403970930,1769700640092,-1000.0,0.00013821,2]
[403970932,1769700640105,-234.04994533,0.00013821,2]
[403970934,1769700640115,-1000.0,0.00013821,2]
[403970936,1769700640124,-438.19186206,0.00013821,2]
[403970938,1769700640134,-1000.0,0.00013821,2]
[403970940,1769700640143,-1000.0,0.00013821,2]
[403970942,1769700640152,-1000.0,0.00013821,2]
[403970944,1769700640161,-500.0,0.00013821,2]
[403970946,1769700640171,-1000.0,0.00013821,2]
[403970948,1769700640180,-1000.0,0.00013821,2]
[403970950,1769700640189,-1000.0,0.00013821,2]
[403970953,1769700640201,-1000.0,0.00013821,2]
[403970954,1769700640210,-7826.7,0.00013853,2]
[403970957,1769700640220,-823.0,0.00013884,2]
[403970959,1769700640229,-151.32,0.000139,2]
[403970961,1769700640238,-1950.0,0.00013901,2]
[403970962,1769700640247,-1835.21541518,0.00013905,2]
[403970965,1769700640257,-600.0,0.00014221,2]
[403970967,1769700640266,-500.0,0.00014246,2]
[403970968,1769700640275,-1000.0,0.00014247,2]
[403970970,1769700640284,-500.0,0.00014247,2]
[403970972,1769700640293,-1102.21614882,0.00014247,2]
[403970975,1769700640302,-1000.0,0.00014247,2]
[403970976,1769700640311,-500.0,0.00014247,2]
[403970979,1769700640322,-1000.0,0.00014247,2]
[403970980,1769700640331,-500.0,0.00014247,2]
[403970983,1769700640342,-1000.0,0.00014316,2]
[403970985,1769700640352,-1500.0,0.00014368,2]
[403970987,1769700640362,-500.0,0.00014368,2]
[403970989,1769700640374,-576.36100435,0.00014368,2]
[403970991,1769700640384,-1500.0,0.00014368,2]
[403970993,1769700640394,-1500.0,0.00014368,2]
[403970995,1769700640403,-1007.51247725,0.00014368,2]
[403970997,1769700640413,-1051.77248145,0.00014368,2]
[403970999,1769700640422,-313.29299318,0.00014392,2]
[403971001,1769700640431,-160.0,0.00014487,2]
[403971003,1769700640441,-1041.66666667,0.00014487,2]
[403971005,1769700640455,-160.0,0.00014489,2]
[403971006,1769700640464,-151.32,0.000146,2]
[403971009,1769700640474,-4865.50988347,0.00014764,2]
[403971011,1769700640483,-900.0,0.00014768,2]
[403971013,1769700640493,-500.0,0.00014794,2]
[403971014,1769700640502,-1500.0,0.00014795,2]
[403971016,1769700640511,-634.23032778,0.00014795,2]
[403971018,1769700640520,-596.00080003,0.000149,2]
[403971021,1769700640530,-2000.0,0.00014916,2]
[403971023,1769700640540,-607.3138929,0.00014916,2]
[403971024,1769700640549,-2000.0,0.00014916,2]
[403971027,1769700640559,-4129.23468415,0.00014966,2]
[403971028,1769700640568,-1020.77037412,0.00015,2]
[403971031,1769700640577,-90000.0,0.00015,2]
[403971033,1769700640587,-40904.92377895,0.00015,2]
[403971035,1769700640596,-151.25880561,0.00015,2]
[403971037,1769700640605,-1152.0,0.00015265,2]
[403971039,1769700640615,-900.0,0.00015316,2]
[403971041,1769700640624,-500.0,0.00015342,2]
[403971043,1769700640636,-2765.16,0.00015342,2]
[403971044,1769700640646,-2000.0,0.00015342,2]
[403971047,1769700640656,-3115294.6022495,0.000154,2]
[403971048,1769700640665,-151.32,0.000154,2]
[403971051,1769700640675,-500.0,0.00015464,2]
[403971052,1769700640687,-2500.0,0.00015464,2]
[403971054,1769700640699,-2500.0,0.00015464,2]
[403971056,1769700640709,-5000.0,0.0001564,2]
[403971058,1769700640718,-1000.0,0.00015748,2]
[403971060,1769700640727,-244.0,0.00015748,2]
[403971062,1769700640737,-8649.79534839,0.00015766,2]
[403971064,1769700640747,-2500.0,0.0001589,2]
[403971066,1769700640756,-2000.0,0.00016012,2]
[403971068,1769700640765,-2500.0,0.00016012,2]
[403971070,1769700640777,-7340.86166071,0.00016028,2]
[403971072,1769700640786,-151.32,0.000162,2]
[403971074,1769700640796,-354.75824227,0.00016392,2]
[403971076,1769700640805,-200.0,0.00016438,2]
[403971078,1769700640814,-3000.0,0.00016438,2]
[403971080,1769700640824,-500.0,0.00016477,2]
[403971082,1769700640834,-181.0,0.00016658,3]
[403971084,1769700640843,-1613.0,0.00016784,2]
[403971086,1769700640853,-500.0,0.00016804,2]
[403971088,1769700640868,-5419.14259885,0.00016863,2]
[403971090,1769700640878,-3500.0,0.00016986,2]
[403971092,1769700640888,-304.46545651,0.00017,2]
[403971094,1769700640898,-151.32,0.00017,2]
[403971096,1769700640908,-1000.0,0.00017323,2]
[403971099,1769700640918,-492.0,0.00017323,2]
[403971100,1769700640928,-1319.71586935,0.00017534,2]
[403971102,1769700640938,-168.0,0.00017673,2]
[403971104,1769700640953,-151.32,0.000177,2]
[403971106,1769700640963,-168.0,0.0001777,2]
[403971108,1769700640972,-30000.0,0.00017864,2]
[403971110,1769700640982,-662.01898806,0.00017864,2]
[403971112,1769700640991,-2773.56790519,0.00017864,2]
[403971114,1769700641000,-209.40437684,0.00017864,2]
[403971116,1769700641009,-217.15233878,0.00017864,2]
[403971118,1769700641018,-225.18697532,0.00017864,2]
[403971120,1769700641027,-233.51889341,0.00017864,2]
[403971122,1769700641039,-242.15909246,0.00017864,2]
[403971124,1769700641049,-251.11897888,0.00017864,2]
[403971126,1769700641059,-260.4103811,0.00017864,2]
[403971128,1769700641069,-270.0455652,0.00017864,2]
[403971130,1769700641079,-280.03725112,0.00017864,2]
[403971132,1769700641088,-290.39862941,0.00017864,2]
[403971134,1769700641098,-301.1433787,0.00017864,2]
[403971136,1769700641107,-17761.18142603,0.00018,2]
[403971138,1769700641116,-23511.6166546,0.00018,2]
[403971140,1769700641125,-13880.76,0.00018082,3]
[403971142,1769700641134,-168.0,0.00018223,2]
[403971144,1769700641144,-9939.3392418,0.000183,3]
[403971146,1769700641153,-396.22349137,0.00018392,2]
[403971148,1769700641162,-31110.0,0.00018412,2]
[403971150,1769700641171,-2876.18991768,0.00018412,2]
[403971152,1769700641181,-2258.0,0.00018454,2]
[403971154,1769700641190,-151.32,0.000185,2]
[403971156,1769700641204,-5000.0,0.00018768,2]
[403971158,1769700641212,-2150.0,0.00018776,2]
[403971160,1769700641222,-1369.0,0.00018776,2]
[403971162,1769700641231,-716.0,0.00018776,2]
[403971164,1769700641241,-180.914,0.00018776,2]
[403971166,1769700641251,-418.0,0.00018776,2]
[403971168,1769700641260,-303.10001603,0.000189,2]
[403971170,1769700641269,-30000.0,0.0001896,2]
[403971172,1769700641278,-2982.60894464,0.0001896,2]
[403971174,1769700641287,-12774.38585591,0.00019,2]
[403971176,1769700641296,-500.0,0.00019035,2]
[403971178,1769700641306,-1000.0,0.00019055,2]
[403971180,1769700641315,-791.0,0.00019055,2]
[403971182,1769700641325,-303.10001603,0.00019089,2]
[403971184,1769700641334,-508.1504,0.00019178,2]
[403971186,1769700641344,-200.0,0.00019178,2]
[403971188,1769700641353,-508.1504,0.00019178,2]
[403971190,1769700641362,-508.1504,0.00019178,2]
[403971191,1769700641372,-508.1504,0.00019178,2]
[403971193,1769700641381,-508.1504,0.00019178,2]
[403971195,1769700641390,-1270.376,0.00019178,2]
[403971197,1769700641399,-508.1504,0.00019178,2]
[403971199,1769700641408,-1890.6,0.000192,2]
[403971201,1769700641418,-157.83,0.000192,2]
[403971203,1769700641427,-170.47,0.000192,2]
[403971206,1769700641436,-303.10001603,0.00019278,2]
[403971208,1769700641448,-168.11,0.000193,2]
[403971210,1769700641458,-2218.09,0.000193,2]
[403971212,1769700641467,-151.32,0.000193,2]
[403971214,1769700641477,-303.10001603,0.00019467,2]
[403971215,1769700641486,-3092.96547559,0.00019508,2]
[403971218,1769700641495,-508.1504,0.00019589,3]
[403971220,1769700641505,-508.1504,0.00019589,3]
[403971222,1769700641514,-508.1504,0.00019589,3]
[403971224,1769700641523,-508.1504,0.00019589,3]
[403971226,1769700641533,-508.1504,0.00019589,3]
[403971228,1769700641542,-1270.376,0.00019589,3]
[403971230,1769700641551,-303.10001603,0.00019656,2]
[403971232,1769700641560,-2776.14,0.000197,3]
[403971234,1769700641569,-454.65002405,0.00019845,4]
[403971236,1769700641578,-13954.45134406,0.0002,2]
[403971238,1769700641587,-14721.8065331,0.0002,2]
[403971240,1769700641596,-40766.42377389,0.0002,2]
[403971242,1769700641606,-697994.66008834,0.0002,2]
[403971244,1769700641615,-508.1504,0.0002,4]
[403971246,1769700641625,-508.1504,0.0002,4]
[403971248,1769700641634,-508.1504,0.0002,4]
[403971250,1769700641643,-508.1504,0.0002,4]
[403971251,1769700641653,-2000.0,0.0002,7]
[403971254,1769700641662,-508.1504,0.0002,4]
[403971256,1769700641672,-508.1504,0.0002,4]
[403971257,1769700641683,-454.65002405,0.00020034,4]
[403971259,1769700641695,-3207.40519818,0.00020056,2]
[403971262,1769700641709,-151.32,0.000201,2]
[403971263,1769700641719,-454.65002405,0.00020223,4]
[403971265,1769700641728,-3162.0,0.0002029,2]
[403971267,1769700641738,-5000.0,0.00020332,2]
[403971269,1769700641750,-437.68874047,0.00020392,2]
[403971271,1769700641759,-508.1504,0.00020411,5]
[403971273,1769700641768,-454.65002405,0.00020412,4]
[403971275,1769700641778,-454.65002405,0.00020601,4]
[403971277,1769700641787,-3326.07919052,0.00020604,2]
[403971279,1769700641797,-151.32,0.000208,2]
[403971281,1769700641806,-151.0,0.000209,4]
[403971283,1769700641815,-151.0,0.000209,3]
[403971285,1769700641826,-256.84706836,0.000209,2]
[403971299,1769700641952,-1000.0,0.0002096,2]
[403971301,1769700641962,-1000.0,0.0002096,2]
[403971304,1769700641972,-647.92,0.00021029,2]
[403971306,1769700641982,-1890.6,0.000211,2]
[403971308,1769700641991,-3449.14412057,0.00021152,2]
[403971310,1769700642000,-60019.26178474,0.000212,2]
[403971312,1769700642009,-475.0,0.00021592,7]
[403971314,1769700642019,-475.0,0.00021592,7]
[403971316,1769700642028,-151.32,0.000216,2]
[403971318,1769700642037,-2150.0,0.00021776,2]
[403971320,1769700642047,-1369.0,0.00021776,2]
[403971322,1769700642058,-716.0,0.00021776,2]
[403971324,1769700642067,-179.0,0.00021776,2]
[403971326,1769700642077,-418.0,0.00021776,2]
[403971328,1769700642087,-2218.09,0.000218,2]
[403971330,1769700642096,-880.632,0.00021866,2]
[403971332,1769700642106,-250.14,0.00022,7]
[403971334,1769700642116,-153.98,0.00022,2]
[403971336,1769700642128,-454.63175259,0.00022,2]
[403971338,1769700642137,-4427.0,0.00022309,2]
[403971340,1769700642146,-479.15398956,0.00022392,2]
[403971342,1769700642156,-151.32,0.000224,2]
[403971344,1769700642166,-160.0,0.00023,3]
[403971346,1769700642176,-1041.66666667,0.00023,3]
[403971348,1769700642186,-1000.0,0.00023056,10]
[403971350,1769700642198,-1000.0,0.00023056,10]
[403971352,1769700642207,-579.0,0.00023056,10]
[403971354,1769700642217,-151.32,0.000232,2]
[403971356,1769700642227,-250.0,0.000235,10]
[403971358,1769700642236,-250.0,0.000236,10]
[403971361,1769700642246,-250.14,0.000237,7]
[403971363,1769700642255,-250.0,0.000237,10]
[403971365,1769700642265,-4302.51189718,0.000237,14]
[403971367,1769700642274,-350.0,0.000238,10]
[403971369,1769700642284,-151.32,0.000239,2]
[403971371,1769700642293,-44431.40646368,0.00024,7]
[403971373,1769700642302,-400.37693488,0.00024,30]
[403971375,1769700642311,-160.0,0.00024,7]
[403971377,1769700642321,-1041.66666667,0.00024,7]
[403971379,1769700642330,-520.61923866,0.00024392,2]
[403971382,1769700642339,-157.83,0.000245,7]
[403971384,1769700642348,-3006.0,0.00024529,2]
[403971386,1769700642357,-380.0,0.00024658,2]
[403971388,1769700642367,-1890.6,0.000247,2]
[403971390,1769700642376,-151.32,0.000247,2]
[403971392,1769700642386,-2150.0,0.00024776,2]
[403971394,1769700642395,-1369.0,0.00024776,2]
[403971396,1769700642404,-716.0,0.00024776,2]
[403971398,1769700642414,-179.0,0.00024776,2]
[403971400,1769700642423,-418.0,0.00024776,2]
[403971402,1769700642432,-43440.4630058,0.000249,2]
[403971404,1769700642442,-2218.09,0.000249,14]
[403971406,1769700642457,-160.297494,0.000249,7]
[403971408,1769700642466,-151.0,0.000249,7]
[403971410,1769700642475,-151.0,0.000249,7]
[403971412,1769700642485,-151.0,0.000249,7]
[403971416,1769700642505,-151.0,0.000249,7]
[403971418,1769700642515,-235.0,0.000249,7]
[403971420,1769700642526,-151.0,0.000249,7]
[403971422,1769700642536,-303.289075,0.000249,7]
[403971424,1769700642545,-151.0,0.000249,7]
[403971426,1769700642556,-303.289075,0.000249,7]
[403971428,1769700642566,-151.0,0.000249,7]
[403971430,1769700642575,-303.289075,0.000249,7]
[403971432,1769700642585,-160.0,0.00025,7]
[403971434,1769700642596,-1041.66666667,0.00025,7]
[403971436,1769700642607,-300.2,0.000251,7]
[403971438,1769700642617,-250.14,0.000253,7]
[403971440,1769700642627,-1000.0,0.00025362,10]
[403971443,1769700642637,-1000.0,0.00025362,10]
[403971445,1769700642647,-1000.0,0.00025362,10]
[403971447,1769700642657,-900.0,0.00025469,3]
[403971449,1769700642668,-1000.0,0.000255,2]
[403971451,1769700642678,-151.32,0.000255,2]
[403971453,1769700642691,-1041.66666667,0.00026,10]
[403971455,1769700642704,-151.32,0.000263,2]
[403971457,1769700642714,-562.08448776,0.00026392,2]
[403971459,1769700642723,-162.0,0.00026521,20]
[403971461,1769700642734,-200.0,0.0002654,14]
[403971463,1769700642744,-250.14,0.000268,7]
[403971465,1769700642754,-151.32,0.00027,2]
[403971467,1769700642765,-169.70744721,0.0002727,5]
[403971469,1769700642774,-2150.0,0.00027776,2]
[403971471,1769700642784,-1369.0,0.00027776,2]
[403971473,1769700642793,-711.004,0.00027776,2]
[403971475,1769700642802,-179.0,0.00027776,2]
[403971477,1769700642812,-418.0,0.00027776,2]
[403971479,1769700642821,-296.6562392,0.000278,2]
[403971481,1769700642831,-151.32,0.000278,2]
[403971483,1769700642840,-1000.0,0.00027898,30]
[403971485,1769700642850,-1000.0,0.00027898,30]
[403971487,1769700642860,-1000.0,0.00027898,30]
[403971489,1769700642871,-715.0,0.00027898,30]
[403971491,1769700642881,-169.7074472,0.00028,5]
[403971493,1769700642891,-18181.99197102,0.00028,2]
[403971496,1769700642901,-1890.6,0.00028,2]
[403971498,1769700642911,-179.9820018,0.00028022,2]
[403971500,1769700642921,-1304.95,0.00028131,30]
[403971501,1769700642931,-151.0,0.00028235,7]
[403971504,1769700642940,-374.412979,0.00028235,7]
[403971505,1769700642952,-374.412979,0.00028235,7]
[403971507,1769700642962,-374.412979,0.00028235,7]
[403971509,1769700642973,-397.269782,0.00028235,7]
[403971511,1769700642983,-374.412979,0.00028235,7]
[403971513,1769700642992,-397.269782,0.00028235,7]
[403971515,1769700643002,-397.269782,0.00028235,7]
[403971518,1769700643012,-397.269782,0.00028235,7]
[403971520,1769700643022,-151.0,0.00028235,7]
[403971522,1769700643031,-151.0,0.00028235,7]
[403971524,1769700643041,-151.0,0.00028235,7]
[403971526,1769700643050,-151.0,0.00028235,7]
[403971528,1769700643059,-151.0,0.00028235,7]
[403971530,1769700643069,-151.0,0.00028235,7]
[403971532,1769700643079,-151.0,0.00028235,7]
[403971534,1769700643088,-151.0,0.00028235,7]
[403971536,1769700643098,-151.0,0.00028235,7]
[403971538,1769700643108,-151.120246,0.00028235,7]
[403971540,1769700643118,-20777.926373,0.00028235,60]
[403971542,1769700643128,-14544.548461,0.00028235,30]
[403971544,1769700643139,-250.14,0.000283,7]
[403971546,1769700643149,-2218.09,0.000283,14]
[403971548,1769700643159,-356.0,0.00028349,2]
[403971550,1769700643169,-603.54973685,0.00028392,2]
[403971552,1769700643179,-86970.99015163,0.000285,7]
[403971554,1769700643189,-151.32,0.000286,2]
[403971556,1769700643200,-2776.14,0.000287,4]
[403971558,1769700643210,-431.57887456,0.00028998,2]
[403971560,1769700643220,-101941.02015761,0.00029,2]
[403971562,1769700643230,-1200.30876492,0.00029,2]
[403971564,1769700643240,-1041.66666667,0.00029,30]
[403971566,1769700643250,-160.0,0.00029,7]
[403971568,1769700643259,-1041.66666667,0.00029,7]
[403971570,1769700643269,-151.32,0.000294,2]
[403971572,1769700643280,-250.14,0.000296,7]
[403971574,1769700643291,-200.31348716,0.000297,60]
[403971576,1769700643300,-150.0,0.00029863,60]
[403971578,1769700643309,-150.0,0.00029863,60]
[403971580,1769700643319,-150.0,0.00029863,60]
[403971582,1769700643329,-150.0,0.00029863,60]
[403971584,1769700643340,-150.0,0.00029863,60]
[403971586,1769700643351,-152.15271456,0.00029863,60]
[403971588,1769700643361,-151.0647238,0.00029863,60]
[403971590,1769700643371,-500.0,0.00029863,60]
[403971592,1769700643383,-150.0,0.0003,60]
[403971594,1769700643394,-269.63216851,0.0003,60]
[403971596,1769700643403,-150.0,0.0003,60]
[403971598,1769700643413,-500.0,0.0003,60]
[403971600,1769700643423,-378.0,0.0003,8]
[403971602,1769700643432,-153.98,0.0003,2]
[403971604,1769700643442,-963.50824217,0.0003,60]
[403971606,1769700643459,-938.30441648,0.0003,14]
[403971608,1769700643468,-151.4031818,0.0003,14]
[403971610,1769700643478,-151.32,0.000301,2]
[403971612,1769700643488,-150.0,0.0003013,2]
[403971614,1769700643496,-150.0,0.00030137,60]
[403971616,1769700643506,-150.0,0.00030137,60]
[403971618,1769700643516,-500.0,0.00030137,60]
[403971620,1769700643526,-500.0,0.00030274,60]
[403971622,1769700643536,-1890.6,0.000303,2]
[403971624,1769700643546,-157.83,0.000303,7]
[403971626,1769700643555,-645.01498595,0.00030392,2]
[403971628,1769700643565,-4155.585274,0.00030494,30]
[403971631,1769700643575,-38000.0,0.0003057,10]
[403971634,1769700643584,-38000.0,0.00030579,10]
[403971635,1769700643594,-38000.0,0.00030588,10]
[403971640,1769700643604,-38000.0,0.00030597,10]
[403971645,1769700643613,-38000.0,0.00030606,10]
[403971648,1769700643623,-1000.0,0.00030688,30]
[403971651,1769700643632,-1000.0,0.00030688,30]
[403971654,1769700643642,-1000.0,0.00030688,30]
[403971657,1769700643651,-2150.0,0.00030776,2]
[403971661,1769700643661,-1369.0,0.00030776,2]
[403971664,1769700643670,-179.0,0.00030776,2]
[403971666,1769700643680,-418.0,0.00030776,2]
[403971669,1769700643699,-151.0,0.000308,19]
[403971672,1769700643708,-151.0,0.000308,13]
[403971675,1769700643718,-2218.09,0.000308,14]
[403971676,1769700643730,-250.14,0.000309,7]
[403971677,1769700643741,-306.47786973,0.0003099,2]
[403971678,1769700643751,-1377.15229895,0.00031,120]
[403971680,1769700643761,-1284.85576491,0.00031,120]
[403971682,1769700643775,-207.67819981,0.00031,120]
[403971684,1769700643785,-206.71743825,0.00031,120]
[403971686,1769700643795,-208.43322925,0.00031,120]
[403971688,1769700643805,-274.41217385,0.00031,120]
[403971689,1769700643814,-190.54759786,0.00031,120]
[403971690,1769700643823,-299.96,0.00031,120]
[403971691,1769700643832,-1230.42922593,0.00031,120]
[403971692,1769700643842,-176.13181645,0.00031,120]
[403971693,1769700643850,-350.0,0.00031,60]
[403971694,1769700643859,-586.67122261,0.00031,30]
[403971695,1769700643869,-1041.66666667,0.00031,10]
[403971697,1769700643878,-2609.9,0.00031145,30]
[403971699,1769700643887,-800.0,0.00031421,2]
[403971701,1769700643897,-800.0,0.00031516,2]
[403971703,1769700643906,-800.0,0.0003162,2]
[403971705,1769700643915,-800.0,0.00031899,2]
[403971707,1769700643924,-1377.15229895,0.000319,120]
[403971709,1769700643934,-1284.85576491,0.000319,120]
[403971711,1769700643943,-207.67819981,0.000319,120]
[403971712,1769700643955,-206.71743825,0.000319,120]
[403971713,1769700643964,-208.43322925,0.000319,120]
[403971714,1769700643973,-274.41217385,0.000319,120]
[403971715,1769700643983,-190.54759786,0.000319,120]
[403971716,1769700643992,-299.96,0.000319,120]
[403971717,1769700644001,-1230.42922593,0.000319,120]
[403971718,1769700644011,-1041.66666667,0.000319,120]
[403971719,1769700644020,-44003.61251725,0.000319,2]
[403971720,1769700644030,-200.92419897,0.00032,2]
[403971721,1769700644043,-500.0,0.0003216,2]
[403971722,1769700644053,-250.14,0.000322,7]
[403971723,1769700644062,-800.0,0.0003223,2]
[403971724,1769700644072,-800.0,0.00032382,2]
[403971725,1769700644082,-686.48023505,0.00032392,2]
[403971726,1769700644092,-1890.6,0.000324,2]
[403971727,1769700644101,-1041.66666667,0.000325,10]
[403971728,1769700644110,-170.47,0.000325,7]
[403971729,1769700644120,-2154.25,0.00032602,120]
[403971730,1769700644130,-3183.79818448,0.000328,2]
[403971731,1769700644139,-169.77781506,0.00032877,2]
[403971732,1769700644149,-7796.9,0.00032877,10]
[403971733,1769700644159,-1377.15229895,0.000329,120]
[403971734,1769700644168,-1284.85576491,0.000329,120]
[403971735,1769700644178,-207.67819981,0.000329,120]
[403971736,1769700644187,-206.71743825,0.000329,120]
[403971737,1769700644200,-208.43322925,0.000329,120]